bitfinex/quotes_SOLUSD_20240818
["timestamp","ask_amount","ask_price","bid_price","bid_amount"]
[1723999025301,0.3631117,146.72,146.65,21.36334334]
[1723999025815,0.3631117,146.72,146.67,6.6187]
[1723999026000,0.3631117,146.72,146.68,1.36308537]
[1723999026201,0.3631117,146.72,146.68,21.36308537]
[1723999026407,0.3631117,146.72,146.68,21.36308696]
[1723999026700,0.3631117,146.72,146.68,1.36308696]
[1723999027015,0.3631117,146.72,146.68,20.0]
[1723999028918,0.3631117,146.72,146.68,21.36320206]
[1723999029305,0.3631117,146.72,146.68,21.36310319]
[1723999029617,0.3631117,146.72,146.68,20.0]
[1723999031311,0.3631117,146.72,146.68,21.36315005]
[1723999032029,0.3631117,146.72,146.68,20.0]
[1723999032224,0.3631117,146.72,146.67,6.6187]
[1723999033809,2.06744596,146.72,146.67,6.6187]
[1723999034004,0.3631117,146.72,146.67,6.6187]
[1723999034402,2.06740211,146.72,146.67,6.6187]
[1723999034611,0.3631117,146.72,146.67,6.6187]
[1723999035716,0.3631117,146.72,146.68,1.3634144]
[1723999036811,0.3631117,146.72,146.67,6.6187]
[1723999038821,45.3631117,146.72,146.67,6.6187]
[1723999039016,45.3631117,146.72,146.63,4.4762]
[1723999039216,45.3631117,146.72,146.63,10.6815]
[1723999039540,45.3631117,146.72,146.64,20.0]
[1723999039902,60.6091117,146.72,146.64,20.0]
[1723999040119,23.59445088,146.71,146.63,6.2053]
[1723999040323,53.52134188,146.7,146.63,6.2053]
[1723999040505,21.809683,146.69,146.63,6.2053]
[1723999040702,1.70460992,146.68,146.63,6.2053]
[1723999041142,45.0,146.7,146.63,6.2053]
[1723999041341,21.89,146.71,146.64,1.36366786]
[1723999041508,21.89,146.71,146.63,6.2053]
[1723999041509,15.6091117,146.72,146.65,1.36350444]
[1723999041712,15.6091117,146.72,146.63,6.2053]
[1723999043339,15.6091117,146.72,146.64,20.0]
[1723999043522,15.6091117,146.72,146.65,1.36348216]
[1723999043722,15.6091117,146.72,146.64,20.0]
[1723999045143,15.6091117,146.72,146.65,1.36338258]
[1723999046236,15.6091117,146.72,146.64,20.0]
[1723999046441,15.6091117,146.72,146.65,1.36338223]
[1723999046738,15.6091117,146.72,146.64,20.0]
[1723999046944,0.3631117,146.72,146.65,46.36338244]
[1723999047240,0.3631117,146.72,146.66,20.0]
[1723999047443,0.3631117,146.72,146.67,1.36314942]
[1723999047619,0.3631117,146.72,146.66,20.0]
[1723999048649,22.2531117,146.72,146.63,6.2053]
[1723999048814,22.2531117,146.72,146.64,20.0]
[1723999049019,29.0688117,146.72,146.64,20.0]
[1723999049218,22.2531117,146.72,146.64,20.0]
[1723999055622,29.0688117,146.72,146.64,20.0]
[1723999055833,21.89,146.7,146.64,20.0]
[1723999056017,21.89,146.68,146.59,12.34000963]
[1723999056336,21.89,146.68,146.6,21.36378676]
[1723999056643,21.89,146.68,146.6,20.0]
[1723999056821,30.0,146.66,146.6,19.5]
[1723999057832,30.0,146.66,146.61,1.36389048]
[1723999058246,30.0,146.66,146.6,19.5]
[1723999058447,30.0,146.66,146.6,25.62386242]
[1723999058626,30.0,146.66,146.6,19.5]
[1723999059243,30.0,146.66,146.61,1.36388972]
[1723999059747,30.0,146.66,146.61,52.48775214]
[1723999059936,30.0,146.67,146.62,26.12386242]
[1723999060256,30.0,146.67,146.62,20.0]
[1723999060549,30.0,146.67,146.63,6.12081621]
[1723999060743,15.246,146.71,146.62,26.1216802]
[1723999061451,15.246,146.71,146.63,1.36354714]
[1723999061949,15.246,146.71,146.63,52.48522734]
[1723999062321,15.246,146.71,146.64,26.1216802]
[1723999062649,15.246,146.71,146.65,1.36334541]
[1723999065128,15.246,146.71,146.65,7.58194541]
[1723999067432,15.246,146.71,146.65,6.2186]
[1723999067633,15.246,146.71,146.65,12.33846454]
[1723999068055,15.246,146.71,146.66,1.36328717]
[1723999068363,0.3631117,146.72,146.67,1.36328594]
[1723999068662,0.3631117,146.72,146.66,6.11972199]
[1723999069730,0.3631117,146.72,146.67,7.48299963]
[1723999069929,0.3631117,146.72,146.67,1.36327764]
[1723999070252,0.3631117,146.72,146.67,7.48299963]
[1723999070557,0.3631117,146.72,146.68,1.36327823]
[1723999071958,0.3631117,146.72,146.66,6.11972199]
[1723999072163,0.3631117,146.72,146.67,7.48301065]
[1723999072334,0.3631117,146.72,146.68,1.36328801]
[1723999072538,0.3631117,146.72,146.67,6.11972199]
[1723999072842,0.3631117,146.72,146.68,7.48163468]
[1723999073052,0.3631117,146.72,146.66,6.11834598]
[1723999073230,0.3631117,146.72,146.65,6.2186]
[1723999073231,0.3631117,146.72,146.67,6.11842703]
[1723999073425,0.3631117,146.72,146.68,6.11842107]
[1723999073664,0.3631117,146.72,146.66,6.11842107]
[1723999073858,0.3631117,146.72,146.67,6.11843823]
[1723999074038,0.3631117,146.72,146.68,6.11843823]
[1723999074236,0.3631117,146.72,146.66,6.11692951]
[1723999074452,0.3631117,146.72,146.65,6.2186]
[1723999074641,0.3631117,146.72,146.66,26.11796979]
[1723999074855,0.3631117,146.72,146.67,6.11796979]
[1723999075158,0.3631117,146.72,146.68,6.11796979]
[1723999075455,0.3631117,146.72,146.67,6.11796979]
[1723999075656,0.3631117,146.72,146.68,7.48130112]
[1723999075860,0.3631117,146.72,146.68,1.36333133]
[1723999076057,0.3631117,146.72,146.68,7.48130112]
[1723999076257,0.3631117,146.72,146.68,1.36333133]
[1723999076556,0.3631117,146.72,146.68,7.48130112]
[1723999076860,0.3631117,146.72,146.69,1.36325431]
[1723999077932,0.3631117,146.72,146.68,7.4815276]
[1723999078150,0.3631117,146.72,146.68,1.36325498]
[1723999078355,0.3631117,146.72,146.68,6.11827262]
[1723999078564,8.76,146.71,146.67,6.11827262]
[1723999078766,8.76,146.71,146.68,6.11827262]
[1723999078951,8.76,146.71,146.67,6.11827262]
[1723999079149,8.76,146.71,146.68,6.11827262]
[1723999079351,15.5771,146.69,146.67,6.11827262]
[1723999079661,8.76,146.68,146.61,6.11827262]
[1723999079860,8.76,146.66,146.62,6.11827262]
[1723999080050,8.76,146.66,146.63,6.11827262]
[1723999080246,8.76,146.66,146.64,6.11827262]
[1723999080455,8.76,146.66,146.61,6.11827262]
[1723999080776,8.76,146.66,146.62,6.11827262]
[1723999080943,8.76,146.66,146.63,6.11827262]
[1723999081142,8.76,146.66,146.61,6.11827262]
[1723999081460,8.76,146.66,146.62,6.11827262]
[1723999081758,8.76,146.66,146.61,6.11827262]
[1723999081940,8.76,146.66,146.62,6.11827262]
[1723999082145,25.1836,146.7,146.63,7.48217094]
[1723999082464,25.1836,146.7,146.64,6.11827262]
[1723999082465,16.4236,146.7,146.64,6.11827262]
[1723999082772,16.4236,146.7,146.61,6.11827262]
[1723999082947,16.4236,146.7,146.62,6.11827262]
[1723999083141,16.4236,146.7,146.63,6.11827262]
[1723999083342,16.4236,146.7,146.64,6.11827262]
[1723999083639,16.4236,146.7,146.65,6.11827262]
[1723999083838,16.4236,146.7,146.61,7.48192918]
[1723999084142,16.4236,146.7,146.62,6.11827262]
[1723999084337,0.3631117,146.72,146.65,21.91]
[1723999084565,0.3631117,146.72,146.66,7.48018156]
[1723999084765,0.3631117,146.72,146.66,1.36325659]
[1723999084981,0.3631117,146.72,146.67,6.11248648]
[1723999085271,0.3631117,146.72,146.68,27.47564777]
[1723999085453,0.3631117,146.72,146.69,6.11248648]
[1723999085651,0.3631117,146.72,146.7,7.47556727]
[1723999085970,0.3631117,146.72,146.69,7.47553629]
[1723999086275,0.3631117,146.72,146.68,20.0]
[1723999086276,0.3631117,146.72,146.7,7.47554529]
[1723999086560,0.3631117,146.72,146.68,20.0]
[1723999086561,0.3631117,146.72,146.71,1.3629924]
[1723999086764,0.3631117,146.72,146.69,6.11248648]
[1723999086973,0.3631117,146.72,146.7,6.11248648]
[1723999087142,0.3631117,146.72,146.69,6.11248648]
[1723999087346,0.3631117,146.72,146.68,20.0]
[1723999087347,0.3631117,146.72,146.7,6.11248648]
[1723999087547,0.3631117,146.72,146.69,6.11248648]
[1723999088270,0.3631117,146.72,146.69,7.47548541]
[1723999088455,0.3631117,146.72,146.69,1.36299893]
[1723999088652,0.3631117,146.72,146.7,1.36299943]
[1723999088860,0.3631117,146.72,146.69,6.10919345]
[1723999089974,0.3631117,146.72,146.68,26.10919345]
[1723999090470,0.3631117,146.72,146.64,6.10919345]
[1723999090674,0.3631117,146.72,146.65,6.10919345]
[1723999090855,0.3631117,146.72,146.66,6.10919345]
[1723999091173,0.3631117,146.72,146.67,6.10919345]
[1723999091472,0.3631117,146.72,146.64,6.10919345]
[1723999091666,0.3631117,146.72,146.65,6.10919345]
[1723999091844,16.288,146.69,146.64,6.10919345]
[1723999092046,16.288,146.69,146.6,6.10919345]
[1723999092242,16.288,146.69,146.61,6.10919345]
[1723999092467,16.288,146.69,146.62,6.10919345]
[1723999092674,16.288,146.69,146.62,1.36384713]
[1723999092854,16.288,146.69,146.63,6.11751935]
[1723999093053,16.288,146.69,146.6,6.11751935]
[1723999093263,16.288,146.69,146.61,71.11751935]
[1723999093458,16.288,146.69,146.62,6.11751935]
[1723999093661,16.288,146.69,146.63,20.0]
[1723999093861,16.288,146.69,146.63,65.0]
[1723999094956,16.288,146.69,146.64,1.36350183]
[1723999095275,16.288,146.69,146.65,7.4810116]
[1723999095476,0.3631117,146.72,146.66,71.11751935]
[1723999095659,0.3631117,146.72,146.67,1.36310737]
[1723999095854,0.3631117,146.72,146.66,65.0]
[1723999096054,0.3631117,146.72,146.67,6.11751935]
[1723999096967,0.3631117,146.72,146.67,6.11408379]
[1723999097371,0.3631117,146.72,146.66,20.0]
[1723999097568,0.3631117,146.72,146.67,6.11409935]
[1723999097772,0.3631117,146.72,146.64,6.11409935]
[1723999097965,22.2731117,146.72,146.65,26.11409935]
[1723999098165,22.2731117,146.72,146.64,6.11409935]
[1723999098390,22.2731117,146.72,146.65,6.11409935]
[1723999098575,22.2731117,146.72,146.63,20.0]
[1723999098780,22.2731117,146.72,146.64,6.11636642]
[1723999098975,22.2731117,146.72,146.65,6.11636642]
[1723999099168,22.2731117,146.72,146.62,6.11636642]
[1723999099374,22.2731117,146.72,146.63,65.0]
[1723999099598,22.2731117,146.72,146.63,45.0]
[1723999099774,0.3631117,146.72,146.64,20.0]
[1723999099971,0.3631117,146.72,146.65,46.36326383]
[1723999100286,0.3631117,146.72,146.66,20.0]
[1723999100491,0.3631117,146.72,146.67,1.3632065]
[1723999100670,0.3631117,146.72,146.68,1.36320766]
[1723999101267,0.3631117,146.72,146.67,45.0]
[1723999101468,0.3631117,146.72,146.66,20.0]
[1723999101777,0.3631117,146.72,146.67,45.0]
[1723999101973,0.3631117,146.72,146.66,45.0]
[1723999103185,0.3631117,146.72,146.65,20.0]
[1723999103394,0.3631117,146.72,146.63,20.0]
[1723999104698,0.3631117,146.72,146.64,45.0]
[1723999105094,0.3631117,146.72,146.65,20.0]
[1723999105586,22.2731117,146.72,146.65,20.0]
[1723999105787,22.2731117,146.72,146.61,20.0]
[1723999105973,22.2731117,146.72,146.62,45.0]
[1723999106379,45.0,146.71,146.61,20.0]
[1723999107290,16.6114,146.7,146.59,6.4393]
[1723999108782,16.6114,146.7,146.6,45.0]
[1723999108985,16.6114,146.7,146.61,20.0]
[1723999111297,16.6114,146.7,146.62,1.36365898]
[1723999112174,16.6114,146.7,146.62,68.27365836]
[1723999112373,16.6114,146.7,146.63,20.0]
[1723999112578,16.6114,146.7,146.64,45.0]
[1723999112779,16.6114,146.7,146.65,20.0]
[1723999120500,16.6114,146.7,146.65,21.36337888]
[1723999121490,16.6114,146.7,146.66,45.0]
[1723999121885,16.6114,146.7,146.65,20.0]
[1723999122083,16.6114,146.7,146.63,20.0]
[1723999122283,16.6114,146.7,146.64,45.0]
[1723999122488,16.6114,146.7,146.65,20.0]
[1723999123211,16.6114,146.7,146.66,45.0]
[1723999123511,16.6114,146.7,146.67,1.36322519]
[1723999123683,0.3631117,146.72,146.68,23.27309565]
[1723999123886,0.3631117,146.72,146.69,65.0]
[1723999124114,0.3631117,146.72,146.7,1.36279668]
[1723999124291,0.3631117,146.72,146.71,1.36280045]
[1723999124489,0.3631117,146.72,146.69,65.0]
[1723999126402,0.3631117,146.72,146.69,20.0]
[1723999126712,0.3631117,146.72,146.68,20.0]
[1723999128386,0.3631117,146.72,146.69,1.36297674]
[1723999128902,0.3631117,146.72,146.68,20.0]
[1723999130594,0.3631117,146.72,146.69,45.0]
[1723999130793,0.3631117,146.72,146.7,20.0]
[1723999135895,0.3631117,146.72,146.71,1.36289319]
[1723999136314,0.3631117,146.72,146.7,20.0]
[1723999136486,0.3631117,146.72,146.7,21.36289405]
[1723999137011,0.3631117,146.72,146.7,20.0]
[1723999138824,0.3631117,146.72,146.66,28.75]
[1723999139011,0.3631117,146.72,146.67,45.0]
[1723999139324,0.3631117,146.72,146.68,20.0]
[1723999139823,0.3631117,146.72,146.67,20.0]
[1723999140803,0.3631117,146.72,146.68,46.36310726]
[1723999141307,0.3631117,146.72,146.69,20.0]
[1723999141508,0.3631117,146.72,146.7,1.36300581]
[1723999141715,0.3631117,146.72,146.71,1.36299202]
[1723999142717,0.3631117,146.72,146.7,1.36297658]
[1723999142922,0.3631117,146.72,146.71,1.36295631]
[1723999143628,0.3631117,146.72,146.7,45.0]
[1723999143928,0.3631117,146.72,146.71,20.0]
[1723999144101,0.3631117,146.72,146.69,20.0]
[1723999150228,0.3631117,146.72,146.68,20.0]
[1723999150430,0.3631117,146.72,146.67,8.75]
[1723999150628,0.3631117,146.72,146.68,20.0]
[1723999156719,16.4798,146.71,146.65,28.75]
[1723999157010,16.4798,146.71,146.65,8.75]
[1723999158214,16.4798,146.71,146.66,20.0]
[1723999158435,16.4798,146.71,146.66,21.36324131]
[1723999159946,16.4798,146.71,146.66,20.0]
[1723999160636,16.4798,146.71,146.66,21.36324266]
[1723999160834,16.4798,146.71,146.67,46.36312618]
[1723999161043,16.4798,146.71,146.68,20.0]
[1723999161716,16.4798,146.71,146.66,20.0]
[1723999161915,16.4798,146.71,146.67,1.36319276]
[1723999162220,16.4798,146.71,146.68,1.36310269]
[1723999162425,16.4798,146.71,146.68,21.36310269]
[1723999163546,16.4798,146.71,146.68,20.0]
[1723999167518,16.4798,146.71,146.65,8.75]
[1723999167730,16.4798,146.71,146.66,65.0]
[1723999167939,16.4798,146.71,146.66,66.36323293]
[1723999168938,16.4798,146.71,146.66,65.0]
[1723999169836,16.4798,146.71,146.66,66.3632329]
[1723999170817,0.3631117,146.72,146.69,8.75]
[1723999171020,0.3631117,146.72,146.7,65.0]
[1723999171918,0.3631117,146.72,146.7,20.0]
[1723999177644,0.3631117,146.72,146.63,13.72968704]
[1723999177946,0.3631117,146.72,146.65,8.75]
[1723999179026,0.3631117,146.72,146.66,65.0]
[1723999179721,0.3631117,146.72,146.67,10.11323606]
[1723999179925,0.3631117,146.72,146.68,21.36309111]
[1723999180149,0.3631117,146.72,146.68,20.0]
[1723999181234,0.3631117,146.72,146.66,8.75]
[1723999181425,0.3631117,146.72,146.67,20.0]
[1723999183141,0.3631117,146.72,146.68,10.1131632]
[1723999183324,0.3631117,146.72,146.69,20.0]
[1723999184752,0.3631117,146.72,146.7,1.36307108]
[1723999185058,0.3631117,146.72,146.7,1.36306989]
[1723999185935,0.3631117,146.72,146.7,1.36307003]
[1723999186850,0.3631117,146.72,146.7,1.36307024]
[1723999187031,0.3631117,146.72,146.69,20.0]
[1723999187244,0.3631117,146.72,146.7,1.36307247]
[1723999188055,0.3631117,146.72,146.69,20.0]
[1723999188232,0.3631117,146.72,146.7,1.36307308]
[1723999188432,0.3631117,146.72,146.69,20.0]
[1723999188930,0.3631117,146.72,146.67,8.75]
[1723999189131,0.3631117,146.72,146.68,20.0]
[1723999189360,0.3631117,146.72,146.69,1.36297739]
[1723999189854,0.3631117,146.72,146.68,20.0]
[1723999192147,0.3631117,146.72,146.69,55.11294593]
[1723999192455,0.3631117,146.72,146.71,8.75]
[1723999192776,0.3631117,146.72,146.71,75.11277249]
[1723999194242,0.3631117,146.72,146.71,73.75]
[1723999196138,0.3631117,146.72,146.71,75.11247875]
[1723999198372,0.3631117,146.72,146.71,28.75]
[1723999198764,0.3631117,146.72,146.71,30.11263407]
[1723999199668,0.3631117,146.72,146.71,65.0]
[1723999199847,0.3631117,146.72,146.71,73.75]
[1723999200053,0.3631117,146.72,146.71,65.0]
[1723999200269,0.3631117,146.72,146.71,75.11267539]
[1723999200781,0.3631117,146.72,146.71,73.75]
[1723999201353,0.3631117,146.72,146.71,65.0]
[1723999201553,0.3631117,146.72,146.71,73.75]
[1723999211561,0.3631117,146.72,146.71,75.11264977]
[1723999211762,0.3631117,146.72,146.71,73.75]
[1723999212583,10.0,146.75,146.71,117.796137]
[1723999212789,10.0,146.75,146.74,8.75]
[1723999212986,10.0,146.75,146.74,55.11244285]
[1723999213165,10.0,146.75,146.74,73.75]
[1723999213571,16.0798,146.85,146.74,95.11233378]
[1723999213801,16.0798,146.85,146.78,8.75]
[1723999214000,16.0798,146.85,146.79,65.0]
[1723999214900,16.0798,146.85,146.79,20.0]
[1723999215195,8.75,146.84,146.75,8.75]
[1723999215398,8.75,146.84,146.76,65.0]
[1723999215575,24.8298,146.85,146.77,1.36216522]
[1723999215769,24.8298,146.85,146.76,65.0]
[1723999217874,16.0798,146.85,146.77,8.75]
[1723999218104,16.0798,146.85,146.78,65.0]
[1723999218898,24.8298,146.85,146.78,20.0]
[1723999219405,8.75,146.83,146.73,6.1192]
[1723999220004,8.75,146.83,146.74,8.75]
[1723999220207,8.75,146.83,146.74,10.11221257]
[1723999220706,8.75,146.83,146.75,45.0]
[1723999221206,8.75,146.83,146.76,20.0]
[1723999221903,15.301,146.84,146.77,45.0]
[1723999222479,15.301,146.84,146.77,46.36197964]
[1723999222691,15.301,146.84,146.78,20.0]
[1723999222891,15.301,146.84,146.79,45.0]
[1723999224300,15.301,146.84,146.8,20.0]
[1723999226315,14.801,146.84,146.8,20.0]
[1723999227087,14.801,146.84,146.75,28.75]
[1723999227280,14.801,146.84,146.77,8.75]
[1723999227487,14.801,146.84,146.78,20.0]
[1723999228205,14.801,146.84,146.79,45.0]
[1723999230311,14.801,146.84,146.8,20.0]
[1723999230688,14.801,146.84,146.81,1.36192707]
[1723999230890,14.801,146.84,146.8,20.0]
[1723999231084,14.801,146.84,146.8,21.36193487]
[1723999231285,16.1641117,146.87,146.81,8.75]
[1723999231502,16.1641117,146.87,146.82,45.0]
[1723999232396,16.1641117,146.87,146.83,1.36166742]
[1723999233705,16.1641117,146.87,146.82,46.36154695]
[1723999234920,16.1641117,146.87,146.83,1.36156071]
[1723999236626,16.1641117,146.87,146.83,30.11156071]
[1723999236912,16.1641117,146.87,146.84,45.0]
[1723999237117,16.1641117,146.87,146.83,20.0]
[1723999237292,16.1641117,146.87,146.79,20.0]
[1723999237493,16.1641117,146.87,146.79,27.44059052]
[1723999237726,16.1641117,146.87,146.8,1.36174758]
[1723999237891,16.1641117,146.87,146.8,10.11174758]
[1723999238100,16.1641117,146.87,146.81,20.0]
[1723999238422,16.1641117,146.87,146.82,1.36170352]
[1723999238599,16.1641117,146.87,146.83,1.36170379]
[1723999239011,16.1641117,146.87,146.83,21.36170379]
[1723999239325,16.1641117,146.87,146.84,45.0]
[1723999240417,16.1641117,146.87,146.83,20.0]
[1723999240623,16.1641117,146.87,146.81,20.0]
[1723999240823,16.1641117,146.87,146.82,45.0]
[1723999241013,16.1641117,146.87,146.83,20.0]
[1723999241420,8.75,146.86,146.8,6.08008208]
[1723999241711,8.75,146.84,146.75,30.99419308]
[1723999241917,8.75,146.84,146.76,6.08008208]
[1723999242293,8.75,146.84,146.76,7.4420756]
[1723999242621,8.75,146.84,146.77,1.3619917]
[1723999242923,6.3128,146.86,146.77,1.3619917]
[1723999242924,8.75,146.85,146.77,1.3619917]
[1723999243109,8.75,146.85,146.77,10.1119917]
[1723999243310,8.75,146.85,146.78,45.0]
[1723999243511,15.0628,146.86,146.79,1.36192966]
[1723999243814,6.3128,146.86,146.79,20.0]
[1723999244023,6.3128,146.86,146.8,45.0]
[1723999245115,24.9141117,146.87,146.81,20.0]
[1723999245308,24.9141117,146.87,146.82,45.0]
[1723999245714,16.1641117,146.87,146.82,45.0]
[1723999248627,16.1641117,146.87,146.81,20.0]
[1723999248800,8.75,146.86,146.79,20.0]
[1723999249009,8.75,146.84,146.77,20.0]
[1723999249401,8.75,146.84,146.76,20.0]
[1723999250626,16.1624,146.83,146.76,20.0]
[1723999251204,16.1624,146.83,146.77,45.0]
[1723999251401,16.1624,146.83,146.78,20.0]
[1723999251599,16.1624,146.83,146.76,20.0]
[1723999252000,8.75,146.82,146.75,20.0]
[1723999252255,16.1624,146.79,146.74,7.10921094]
[1723999252405,16.1624,146.79,146.71,6.08137719]
[1723999252720,8.75,146.78,146.71,29.35696906]
[1723999253032,8.75,146.78,146.7,8.75]
[1723999253406,8.75,146.78,146.7,6.08137719]
[1723999253619,8.75,146.78,146.69,6.08137719]
[1723999253818,8.75,146.76,146.69,6.08137719]
[1723999254636,8.75,146.74,146.68,13.19249513]
[1723999254837,8.75,146.74,146.66,6.08137719]
[1723999255032,8.75,146.74,146.67,7.44433624]
[1723999255227,8.75,146.74,146.67,1.36295905]
[1723999255417,8.75,146.74,146.68,6.09580337]
[1723999255622,8.75,146.74,146.66,6.09580337]
[1723999255831,8.75,146.74,146.67,7.45876059]
[1723999256033,8.75,146.74,146.67,1.36295722]
[1723999256221,6.3521,146.73,146.68,6.09580337]
[1723999256425,6.3521,146.73,146.65,7.11276088]
[1723999256831,24.9124,146.75,146.65,23.32169121]
[1723999257137,16.1624,146.75,146.67,8.75]
[1723999257328,16.1624,146.75,146.68,1.36295712]
[1723999258125,16.1624,146.75,146.68,46.36295712]
[1723999258328,16.1624,146.75,146.68,66.36295712]
[1723999258939,16.1624,146.75,146.68,65.0]
[1723999259543,16.1624,146.75,146.68,66.36296185]
[1723999259724,16.1624,146.75,146.68,65.0]
[1723999260219,16.1624,146.75,146.68,66.3628255]
[1723999260421,16.1624,146.75,146.68,65.0]
[1723999260839,16.1624,146.75,146.69,1.36294412]
[1723999261347,16.1624,146.75,146.7,1.36293938]
[1723999261644,16.1624,146.75,146.68,65.0]
[1723999261821,16.1624,146.75,146.68,66.36287049]
[1723999262021,16.1624,146.75,146.68,65.0]
[1723999262355,24.9124,146.75,146.68,65.0]
[1723999263425,16.1624,146.75,146.69,8.75]
[1723999263751,16.1624,146.75,146.7,66.36274372]
[1723999263953,16.1624,146.75,146.71,10.11267849]
[1723999264248,16.1624,146.75,146.72,65.0]
[1723999264428,16.1624,146.75,146.73,1.36266728]
[1723999264633,16.1624,146.75,146.74,1.36261606]
[1723999264822,15.5802,146.8,146.74,66.36261606]
[1723999265848,15.5802,146.8,146.75,1.36244672]
[1723999266056,15.5802,146.8,146.74,65.0]
[1723999267128,15.5802,146.8,146.75,1.36244979]
[1723999267355,15.5802,146.8,146.74,65.0]
[1723999267557,15.5802,146.8,146.75,1.36244834]
[1723999267731,15.5802,146.8,146.74,65.0]
[1723999268054,15.5802,146.8,146.75,1.36244874]
[1723999268459,15.5802,146.8,146.74,65.0]
[1723999268766,15.5802,146.8,146.74,66.36233743]
[1723999270059,15.5802,146.8,146.74,65.0]
[1723999271837,15.5802,146.8,146.74,66.36232803]
[1723999274059,15.5802,146.8,146.74,66.36234093]
[1723999276062,15.5802,146.8,146.74,65.0]
[1723999278155,24.3302,146.8,146.74,20.0]
[1723999278359,24.3302,146.8,146.73,20.0]
[1723999278562,24.3302,146.8,146.71,20.0]
[1723999279438,24.3302,146.8,146.72,45.0]
[1723999279639,24.3302,146.8,146.73,20.0]
[1723999281658,15.5802,146.8,146.74,46.36261942]
[1723999281859,15.5802,146.8,146.74,45.0]
[1723999282066,15.5802,146.8,146.75,20.0]
[1723999282255,15.5802,146.8,146.76,1.36257693]
[1723999282452,15.5802,146.8,146.73,20.0]
[1723999282643,15.5802,146.8,146.74,45.0]
[1723999282963,15.5802,146.8,146.75,20.0]
[1723999283459,24.3302,146.8,146.75,20.0]
[1723999283662,24.3302,146.8,146.74,20.0]
[1723999284369,15.5802,146.8,146.74,20.0]
[1723999286865,15.5802,146.8,146.75,45.0]
[1723999287048,15.5802,146.8,146.75,53.75]
[1723999288370,15.5802,146.8,146.76,20.0]
[1723999289267,15.0802,146.8,146.76,20.0]
[1723999293472,8.75,146.77,146.73,6.08261508]
[1723999293669,8.75,146.77,146.7,6.08261508]
[1723999293969,8.75,146.77,146.71,6.08261508]
[1723999294173,8.75,146.77,146.7,6.08261508]
[1723999294469,8.75,146.77,146.71,6.08261508]
[1723999294670,8.75,146.77,146.7,6.08261508]
[1723999294868,8.75,146.77,146.71,6.08974958]
[1723999294869,30.0,146.76,146.71,6.08974958]
[1723999295069,30.0,146.76,146.7,6.08974958]
[1723999295271,30.0,146.76,146.71,6.08974958]
[1723999295457,30.0,146.76,146.7,6.08974958]
[1723999295649,30.0,146.76,146.71,6.08974958]
[1723999295853,30.0,146.76,146.7,6.08974958]
[1723999296051,30.0,146.76,146.69,7.11103731]
[1723999296052,30.0,146.76,146.71,6.08974958]
[1723999296247,30.0,146.76,146.7,6.08974958]
[1723999296563,30.0,146.76,146.69,7.11103731]
[1723999296564,30.0,146.76,146.71,26.08974958]
[1723999296766,30.0,146.76,146.71,20.0]
[1723999296978,30.0,146.76,146.71,26.08974958]
[1723999297290,30.0,146.76,146.71,20.0]
[1723999297574,8.75,146.77,146.72,6.09189764]
[1723999298078,8.75,146.77,146.71,20.0]
[1723999298254,15.943,146.78,146.72,6.09125136]
[1723999298581,8.75,146.77,146.71,6.09022529]
[1723999298774,8.75,146.77,146.72,6.09022529]
[1723999299094,8.75,146.77,146.73,1.36280223]
[1723999299757,8.75,146.77,146.74,1.36280979]
[1723999300163,8.75,146.77,146.72,7.45296643]
[1723999300361,8.75,146.77,146.72,1.36274114]
[1723999300565,8.75,146.77,146.72,7.45296643]
[1723999300756,15.943,146.78,146.72,1.36274114]
[1723999300957,15.943,146.78,146.72,7.45296643]
[1723999301275,15.943,146.78,146.72,1.36274114]
[1723999301593,15.943,146.78,146.72,7.45296643]